Workbook

Sheet Машины
A1: =CONCATENATE("а/м ",B1) -> а/м 127 | B1: 127
A2: а/м 128 | B2: 128
A3: а/м 129 | B3: 129
A4: а/м 292 | B4: 292
A5: а/м 296 | B5: 296
A6: а/м 297 | B6: 297
A7: =CONCATENATE("а/м ",B7) -> а/м 1081 | B7: 1081
A8: а/м 1083 | B8: 1083
A9: а/м 1084 | B9: 1084
A10: а/м 1085 | B10: 1085
A11: а/м 1086 | B11: 1086
A12: а/м 1090 | B12: 1090
A13: а/м 1094 | B13: 1094
A14: а/м 1095 | B14: 1095
A15: а/м 1129 | B15: 1129
A16: а/м 1131 | B16: 1131
A17: а/м 1132 | B17: 1132
A18: =CONCATENATE("а/м ",B18) -> а/м 3202 | B18: 3202
A19: а/м 3291 | B19: 3291
A20: =CONCATENATE("а/м ",B20) -> а/м 4553 | B20: 4553
A21: а/м 4556 | B21: 4556
A22: а/м
A23: а/м
A24: а/м
A25: а/м
A26: а/м
A27: а/м

Sheet TDSheet
B1: Остатки и обороты по ТМЗ с 10.08.2012 по 31.08.2012 | I1: Всего ПРИХОД | BO1: Всего РАСХОД
B2: Счет / Склад / Номенклатура | C2: Остаток на начало | E2: П р и х о д | G2: П р и х о д | K2: Р а с х о д | M2: Р а с х о д | O2: Р а с х о д | Q2: Р а с х о д | S2: Р а с х о д | U2: Р а с х о д | W2: Р а с х о д | Y2: Р а с х о д | AA2: Р а с х о д | AC2: Р а с х о д | AE2: Р а с х о д | AG2: Р а с х о д | AI2: Р а с х о д | AK2: Р а с х о д | AM2: Р а с х о д | AO2: Р а с х о д | AQ2: Р а с х о д | AS2: Р а с х о д | AU2: Р а с х о д | AW2: Р а с х о д | AY2: Р а с х о д | BA2: Р а с х о д | BC2: Р а с х о д | BE2: Р а с х о д | BG2: Р а с х о д | BI2: Р а с х о д | BK2: Р а с х о д | BM2: Р а с х о д | BQ2: ОСТАТОК на конец
E3: Прих.согл. Акта | G3: Прих.согл. А/О | K3: =INDEX(Машины!$A$1:$A$27,COLUMN(Машины!C:C)/2,ROW(Машины!1:1)) -> а/м 127 | M3: =INDEX(Машины!$A$1:$A$27,COLUMN(Машины!E:E)/2,ROW(Машины!1:1)) -> а/м 128 | O3: =INDEX(Машины!$A$1:$A$27,COLUMN(Машины!G:G)/2,ROW(Машины!1:1)) -> а/м 129 | Q3: =INDEX(Машины!$A$1:$A$27,COLUMN(Машины!I:I)/2,ROW(Машины!1:1)) -> а/м 292 | S3: =INDEX(Машины!$A$1:$A$27,COLUMN(Машины!K:K)/2,ROW(Машины!1:1)) -> а/м 296 | U3: =INDEX(Машины!$A$1:$A$27,COLUMN(Машины!M:M)/2,ROW(Машины!1:1)) -> а/м 297 | W3: =INDEX(Машины!$A$1:$A$27,COLUMN(Машины!O:O)/2,ROW(Машины!1:1)) -> а/м 1081 | Y3: =INDEX(Машины!$A$1:$A$27,COLUMN(Машины!Q:Q)/2,ROW(Машины!1:1)) -> а/м 1083 | AA3: =INDEX(Машины!$A$1:$A$27,COLUMN(Машины!S:S)/2,ROW(Машины!1:1)) -> а/м 1084 | AC3: =INDEX(Машины!$A$1:$A$27,COLUMN(Машины!U:U)/2,ROW(Машины!1:1)) -> а/м 1085 | AE3: =INDEX(Машины!$A$1:$A$27,COLUMN(Машины!W:W)/2,ROW(Машины!1:1)) -> а/м 1086 | AG3: =INDEX(Машины!$A$1:$A$27,COLUMN(Машины!Y:Y)/2,ROW(Машины!1:1)) -> а/м 1090 | AI3: =INDEX(Машины!$A$1:$A$27,COLUMN(Машины!AA:AA)/2,ROW(Машины!1:1)) -> а/м 1094 | AK3: =INDEX(Машины!$A$1:$A$27,COLUMN(Машины!AC:AC)/2,ROW(Машины!1:1)) -> а/м 1095 | AM3: =INDEX(Машины!$A$1:$A$27,COLUMN(Машины!AE:AE)/2,ROW(Машины!1:1)) -> а/м 1129 | AO3: =INDEX(Машины!$A$1:$A$27,COLUMN(Машины!AG:AG)/2,ROW(Машины!1:1)) -> а/м 1131 | AQ3: =INDEX(Машины!$A$1:$A$27,COLUMN(Машины!AI:AI)/2,ROW(Машины!1:1)) -> а/м 1132 | AS3: =INDEX(Машины!$A$1:$A$27,COLUMN(Машины!AK:AK)/2,ROW(Машины!1:1)) -> а/м 3202 | AU3: =INDEX(Машины!$A$1:$A$27,COLUMN(Машины!AM:AM)/2,ROW(Машины!1:1)) -> а/м 3291 | AW3: =INDEX(Машины!$A$1:$A$27,COLUMN(Машины!AO:AO)/2,ROW(Машины!1:1)) -> а/м 4553 | AY3: =INDEX(Машины!$A$1:$A$27,COLUMN(Машины!AQ:AQ)/2,ROW(Машины!1:1)) -> а/м 4556 | BA3: =INDEX(Машины!$A$1:$A$27,COLUMN(Машины!AS:AS)/2,ROW(Машины!1:1)) -> а/м | BC3: =INDEX(Машины!$A$1:$A$27,COLUMN(Машины!AU:AU)/2,ROW(Машины!1:1)) -> а/м | BE3: =INDEX(Машины!$A$1:$A$27,COLUMN(Машины!AW:AW)/2,ROW(Машины!1:1)) -> а/м | BG3: =INDEX(Машины!$A$1:$A$27,COLUMN(Машины!AY:AY)/2,ROW(Машины!1:1)) -> а/м | BI3: =INDEX(Машины!$A$1:$A$27,COLUMN(Машины!BA:BA)/2,ROW(Машины!1:1)) -> а/м | BK3: =INDEX(Машины!$A$1:$A$27,COLUMN(Машины!BC:BC)/2,ROW(Машины!1:1)) -> а/м | BM3: Согл. Акта
C4: кол-во | D4: сумма | E4: кол-во | F4: сумма | G4: кол-во | H4: сумма | I4: кол-во | J4: сумма | K4: кол-во | L4: сумма | M4: кол-во | N4: сумма | O4: кол-во | P4: сумма | Q4: кол-во | R4: сумма | S4: кол-во | T4: сумма | U4: кол-во | V4: сумма | W4: кол-во | X4: сумма | Y4: кол-во | Z4: сумма | AA4: кол-во | AB4: сумма | AC4: кол-во | AD4: сумма | AE4: кол-во | AF4: сумма | AG4: кол-во | AH4: сумма | AI4: кол-во | AJ4: сумма | AK4: кол-во | AL4: сумма | AM4: кол-во | AN4: сумма | AO4: кол-во | AP4: сумма | AQ4: кол-во | AR4: сумма | AS4: кол-во | AT4: сумма | AU4: кол-во | AV4: сумма | AW4: кол-во | AX4: сумма | AY4: кол-во | AZ4: сумма | BA4: кол-во | BB4: сумма | BC4: кол-во | BD4: сумма | BE4: кол-во | BF4: сумма | BG4: кол-во | BH4: сумма | BI4: кол-во | BJ4: сумма | BK4: кол-во | BL4: сумма | BM4: кол-во | BN4: сумма | BO4: кол-во | BP4: сумма | BQ4: кол-во | BR4: сумма
B5: Амортизатор задней кабины | C5: 53 | D5: 4007.12 | L5: =IF(ISERR(ROUND(K5*(($D5+$F5+$H5)/($C5+$E5+$G5)),2)),,ROUND(K5*(($D5+$F5+$H5)/($C5+$E5+$G5)),2)) -> 0 | N5: =IF(ISERR(ROUND(M5*(($D5+$F5+$H5)/($C5+$E5+$G5)),2)),,ROUND(M5*(($D5+$F5+$H5)/($C5+$E5+$G5)),2)) -> 0 | P5: =IF(ISERR(ROUND(O5*(($D5+$F5+$H5)/($C5+$E5+$G5)),2)),,ROUND(O5*(($D5+$F5+$H5)/($C5+$E5+$G5)),2)) -> 0 | R5: =IF(ISERR(ROUND(Q5*(($D5+$F5+$H5)/($C5+$E5+$G5)),2)),,ROUND(Q5*(($D5+$F5+$H5)/($C5+$E5+$G5)),2)) -> 0 | T5: =IF(ISERR(ROUND(S5*(($D5+$F5+$H5)/($C5+$E5+$G5)),2)),,ROUND(S5*(($D5+$F5+$H5)/($C5+$E5+$G5)),2)) -> 0 | V5: =IF(ISERR(ROUND(U5*(($D5+$F5+$H5)/($C5+$E5+$G5)),2)),,ROUND(U5*(($D5+$F5+$H5)/($C5+$E5+$G5)),2)) -> 0 | X5: =IF(ISERR(ROUND(W5*(($D5+$F5+$H5)/($C5+$E5+$G5)),2)),,ROUND(W5*(($D5+$F5+$H5)/($C5+$E5+$G5)),2)) -> 0 | Z5: =IF(ISERR(ROUND(Y5*(($D5+$F5+$H5)/($C5+$E5+$G5)),2)),,ROUND(Y5*(($D5+$F5+$H5)/($C5+$E5+$G5)),2)) -> 0 | AB5: =IF(ISERR(ROUND(AA5*(($D5+$F5+$H5)/($C5+$E5+$G5)),2)),,ROUND(AA5*(($D5+$F5+$H5)/($C5+$E5+$G5)),2)) -> 0 | AD5: =IF(ISERR(ROUND(AC5*(($D5+$F5+$H5)/($C5+$E5+$G5)),2)),,ROUND(AC5*(($D5+$F5+$H5)/($C5+$E5+$G5)),2)) -> 0 | AF5: =IF(ISERR(ROUND(AE5*(($D5+$F5+$H5)/($C5+$E5+$G5)),2)),,ROUND(AE5*(($D5+$F5+$H5)/($C5+$E5+$G5)),2)) -> 0 | AH5: =IF(ISERR(ROUND(AG5*(($D5+$F5+$H5)/($C5+$E5+$G5)),2)),,ROUND(AG5*(($D5+$F5+$H5)/($C5+$E5+$G5)),2)) -> 0 | AJ5: =IF(ISERR(ROUND(AI5*(($D5+$F5+$H5)/($C5+$E5+$G5)),2)),,ROUND(AI5*(($D5+$F5+$H5)/($C5+$E5+$G5)),2)) -> 0 | AL5: =IF(ISERR(ROUND(AK5*(($D5+$F5+$H5)/($C5+$E5+$G5)),2)),,ROUND(AK5*(($D5+$F5+$H5)/($C5+$E5+$G5)),2)) -> 0 | AN5: =IF(ISERR(ROUND(AM5*(($D5+$F5+$H5)/($C5+$E5+$G5)),2)),,ROUND(AM5*(($D5+$F5+$H5)/($C5+$E5+$G5)),2)) -> 0 | AP5: =IF(ISERR(ROUND(AO5*(($D5+$F5+$H5)/($C5+$E5+$G5)),2)),,ROUND(AO5*(($D5+$F5+$H5)/($C5+$E5+$G5)),2)) -> 0 | AR5: =IF(ISERR(ROUND(AQ5*(($D5+$F5+$H5)/($C5+$E5+$G5)),2)),,ROUND(AQ5*(($D5+$F5+$H5)/($C5+$E5+$G5)),2)) -> 0 | AT5: =IF(ISERR(ROUND(AS5*(($D5+$F5+$H5)/($C5+$E5+$G5)),2)),,ROUND(AS5*(($D5+$F5+$H5)/($C5+$E5+$G5)),2)) -> 0 | AV5: =IF(ISERR(ROUND(AU5*(($D5+$F5+$H5)/($C5+$E5+$G5)),2)),,ROUND(AU5*(($D5+$F5+$H5)/($C5+$E5+$G5)),2)) -> 0 | AX5: =IF(ISERR(ROUND(AW5*(($D5+$F5+$H5)/($C5+$E5+$G5)),2)),,ROUND(AW5*(($D5+$F5+$H5)/($C5+$E5+$G5)),2)) -> 0 | AZ5: =IF(ISERR(ROUND(AY5*(($D5+$F5+$H5)/($C5+$E5+$G5)),2)),,ROUND(AY5*(($D5+$F5+$H5)/($C5+$E5+$G5)),2)) -> 0 | BB5: =IF(ISERR(ROUND(BA5*(($D5+$F5+$H5)/($C5+$E5+$G5)),2)),,ROUND(BA5*(($D5+$F5+$H5)/($C5+$E5+$G5)),2)) -> 0 | BD5: =IF(ISERR(ROUND(BC5*(($D5+$F5+$H5)/($C5+$E5+$G5)),2)),,ROUND(BC5*(($D5+$F5+$H5)/($C5+$E5+$G5)),2)) -> 0 | BF5: =IF(ISERR(ROUND(BE5*(($D5+$F5+$H5)/($C5+$E5+$G5)),2)),,ROUND(BE5*(($D5+$F5+$H5)/($C5+$E5+$G5)),2)) -> 0 | BH5: =IF(ISERR(ROUND(BG5*(($D5+$F5+$H5)/($C5+$E5+$G5)),2)),,ROUND(BG5*(($D5+$F5+$H5)/($C5+$E5+$G5)),2)) -> 0 | BJ5: =IF(ISERR(ROUND(BI5*(($D5+$F5+$H5)/($C5+$E5+$G5)),2)),,ROUND(BI5*(($D5+$F5+$H5)/($C5+$E5+$G5)),2)) -> 0 | BL5: =IF(ISERR(ROUND(BK5*(($D5+$F5+$H5)/($C5+$E5+$G5)),2)),,ROUND(BK5*(($D5+$F5+$H5)/($C5+$E5+$G5)),2)) -> 0 | BN5: =IF(ISERR(ROUND(BM5*(($D5+$F5+$H5)/($C5+$E5+$G5)),2)),,ROUND(BM5*(($D5+$F5+$H5)/($C5+$E5+$G5)),2)) -> 0 | BO5: =SUMIF($K$4:$BN$39,$K$4,$K5:$BL5) -> 0 | BP5: =SUMIF($K$4:$BN$39,$L$4,$K5:$BL5) -> 0 | BQ5: =C5+I5-BO5 -> 53 | BR5: =D5+J5-BP5 -> 4007.12
B6: Амортизатор переднего моста | C6: 30 | D6: 1950.68 | L6: 0 | N6: 0 | P6: 0 | R6: 0 | T6: 0 | V6: 0 | X6: 0 | Y6: 1 | Z6: 65.02 | AB6: 0 | AD6: 0 | AF6: 0 | AH6: 0 | AJ6: 0 | AL6: 0 | AN6: 0 | AP6: 0 | AR6: 0 | AT6: 0 | AV6: 0 | AX6: 0 | AZ6: 0 | BB6: 0 | BD6: 0 | BF6: 0 | BH6: 0 | BJ6: 0 | BL6: 0 | BN6: 0 | BO6: 1 | BP6: 65.02 | BQ6: 29 | BR6: 1885.66
B7: Амортизатор передней кабины | C7: 19 | D7: 1423.72 | L7: 0 | N7: 0 | P7: 0 | R7: 0 | S7: 1 | T7: 74.93 | V7: 0 | X7: 0 | Z7: 0 | AB7: 0 | AD7: 0 | AF7: 0 | AH7: 0 | AJ7: 0 | AL7: 0 | AN7: 0 | AP7: 0 | AR7: 0 | AT7: 0 | AV7: 0 | AX7: 0 | AZ7: 0 | BB7: 0 | BD7: 0 | BF7: 0 | BH7: 0 | BJ7: 0 | BL7: 0 | BN7: 0 | BO7: 1 | BP7: 74.93 | BQ7: 18 | BR7: 1348.79
B8: Антигель | C8: 2 | D8: 122.09 | L8: 0 | N8: 0 | P8: 0 | R8: 0 | T8: 0 | V8: 0 | X8: 0 | Z8: 0 | AB8: 0 | AD8: 0 | AF8: 0 | AH8: 0 | AJ8: 0 | AL8: 0 | AN8: 0 | AP8: 0 | AR8: 0 | AT8: 0 | AV8: 0 | AX8: 0 | AZ8: 0 | BB8: 0 | BD8: 0 | BF8: 0 | BH8: 0 | BJ8: 0 | BL8: 0 | BN8: 0 | BO8: 0 | BP8: 0 | BQ8: 2 | BR8: 122.09
B9: Аппаратура №612600081236 | C9: 1 | D9: 2488.33 | L9: 0 | N9: 0 | P9: 0 | R9: 0 | T9: 0 | V9: 0 | X9: 0 | Z9: 0 | AB9: 0 | AD9: 0 | AF9: 0 | AH9: 0 | AJ9: 0 | AL9: 0 | AN9: 0 | AP9: 0 | AR9: 0 | AT9: 0 | AV9: 0 | AX9: 0 | AZ9: 0 | BB9: 0 | BD9: 0 | BF9: 0 | BH9: 0 | BJ9: 0 | BL9: 0 | BN9: 0 | BO9: 0 | BP9: 0 | BQ9: 1 | BR9: 2488.33
B10: Хомут турбонадува | C10: 37 | D10: 423.47 | L10: =IF(ISERR(ROUND(K10*(($D10+$F10+$H10)/($C10+$E10+$G10)),2)),,ROUND(K10*(($D10+$F10+$H10)/($C10+$E10+$G10)),2)) -> 0 | N10: =IF(ISERR(ROUND(M10*(($D10+$F10+$H10)/($C10+$E10+$G10)),2)),,ROUND(M10*(($D10+$F10+$H10)/($C10+$E10+$G10)),2)) -> 0 | P10: =IF(ISERR(ROUND(O10*(($D10+$F10+$H10)/($C10+$E10+$G10)),2)),,ROUND(O10*(($D10+$F10+$H10)/($C10+$E10+$G10)),2)) -> 0 | R10: =IF(ISERR(ROUND(Q10*(($D10+$F10+$H10)/($C10+$E10+$G10)),2)),,ROUND(Q10*(($D10+$F10+$H10)/($C10+$E10+$G10)),2)) -> 0 | T10: =IF(ISERR(ROUND(S10*(($D10+$F10+$H10)/($C10+$E10+$G10)),2)),,ROUND(S10*(($D10+$F10+$H10)/($C10+$E10+$G10)),2)) -> 0 | V10: =IF(ISERR(ROUND(U10*(($D10+$F10+$H10)/($C10+$E10+$G10)),2)),,ROUND(U10*(($D10+$F10+$H10)/($C10+$E10+$G10)),2)) -> 0 | X10: =IF(ISERR(ROUND(W10*(($D10+$F10+$H10)/($C10+$E10+$G10)),2)),,ROUND(W10*(($D10+$F10+$H10)/($C10+$E10+$G10)),2)) -> 0 | Z10: =IF(ISERR(ROUND(Y10*(($D10+$F10+$H10)/($C10+$E10+$G10)),2)),,ROUND(Y10*(($D10+$F10+$H10)/($C10+$E10+$G10)),2)) -> 0 | AB10: =IF(ISERR(ROUND(AA10*(($D10+$F10+$H10)/($C10+$E10+$G10)),2)),,ROUND(AA10*(($D10+$F10+$H10)/($C10+$E10+$G10)),2)) -> 0 | AD10: =IF(ISERR(ROUND(AC10*(($D10+$F10+$H10)/($C10+$E10+$G10)),2)),,ROUND(AC10*(($D10+$F10+$H10)/($C10+$E10+$G10)),2)) -> 0 | AF10: =IF(ISERR(ROUND(AE10*(($D10+$F10+$H10)/($C10+$E10+$G10)),2)),,ROUND(AE10*(($D10+$F10+$H10)/($C10+$E10+$G10)),2)) -> 0 | AH10: =IF(ISERR(ROUND(AG10*(($D10+$F10+$H10)/($C10+$E10+$G10)),2)),,ROUND(AG10*(($D10+$F10+$H10)/($C10+$E10+$G10)),2)) -> 0 | AJ10: =IF(ISERR(ROUND(AI10*(($D10+$F10+$H10)/($C10+$E10+$G10)),2)),,ROUND(AI10*(($D10+$F10+$H10)/($C10+$E10+$G10)),2)) -> 0 | AL10: =IF(ISERR(ROUND(AK10*(($D10+$F10+$H10)/($C10+$E10+$G10)),2)),,ROUND(AK10*(($D10+$F10+$H10)/($C10+$E10+$G10)),2)) -> 0 | AN10: =IF(ISERR(ROUND(AM10*(($D10+$F10+$H10)/($C10+$E10+$G10)),2)),,ROUND(AM10*(($D10+$F10+$H10)/($C10+$E10+$G10)),2)) -> 0 | AP10: =IF(ISERR(ROUND(AO10*(($D10+$F10+$H10)/($C10+$E10+$G10)),2)),,ROUND(AO10*(($D10+$F10+$H10)/($C10+$E10+$G10)),2)) -> 0 | AR10: =IF(ISERR(ROUND(AQ10*(($D10+$F10+$H10)/($C10+$E10+$G10)),2)),,ROUND(AQ10*(($D10+$F10+$H10)/($C10+$E10+$G10)),2)) -> 0 | AT10: =IF(ISERR(ROUND(AS10*(($D10+$F10+$H10)/($C10+$E10+$G10)),2)),,ROUND(AS10*(($D10+$F10+$H10)/($C10+$E10+$G10)),2)) -> 0 | AV10: =IF(ISERR(ROUND(AU10*(($D10+$F10+$H10)/($C10+$E10+$G10)),2)),,ROUND(AU10*(($D10+$F10+$H10)/($C10+$E10+$G10)),2)) -> 0 | AX10: =IF(ISERR(ROUND(AW10*(($D10+$F10+$H10)/($C10+$E10+$G10)),2)),,ROUND(AW10*(($D10+$F10+$H10)/($C10+$E10+$G10)),2)) -> 0 | AZ10: =IF(ISERR(ROUND(AY10*(($D10+$F10+$H10)/($C10+$E10+$G10)),2)),,ROUND(AY10*(($D10+$F10+$H10)/($C10+$E10+$G10)),2)) -> 0 | BB10: =IF(ISERR(ROUND(BA10*(($D10+$F10+$H10)/($C10+$E10+$G10)),2)),,ROUND(BA10*(($D10+$F10+$H10)/($C10+$E10+$G10)),2)) -> 0 | BD10: =IF(ISERR(ROUND(BC10*(($D10+$F10+$H10)/($C10+$E10+$G10)),2)),,ROUND(BC10*(($D10+$F10+$H10)/($C10+$E10+$G10)),2)) -> 0 | BF10: =IF(ISERR(ROUND(BE10*(($D10+$F10+$H10)/($C10+$E10+$G10)),2)),,ROUND(BE10*(($D10+$F10+$H10)/($C10+$E10+$G10)),2)) -> 0 | BH10: =IF(ISERR(ROUND(BG10*(($D10+$F10+$H10)/($C10+$E10+$G10)),2)),,ROUND(BG10*(($D10+$F10+$H10)/($C10+$E10+$G10)),2)) -> 0 | BJ10: =IF(ISERR(ROUND(BI10*(($D10+$F10+$H10)/($C10+$E10+$G10)),2)),,ROUND(BI10*(($D10+$F10+$H10)/($C10+$E10+$G10)),2)) -> 0 | BL10: =IF(ISERR(ROUND(BK10*(($D10+$F10+$H10)/($C10+$E10+$G10)),2)),,ROUND(BK10*(($D10+$F10+$H10)/($C10+$E10+$G10)),2)) -> 0 | BN10: =IF(ISERR(ROUND(BM10*(($D10+$F10+$H10)/($C10+$E10+$G10)),2)),,ROUND(BM10*(($D10+$F10+$H10)/($C10+$E10+$G10)),2)) -> 0 | BO10: 0 | BP10: 0 | BQ10: 37 | BR10: 423.47
B11: Шкворня | C11: 170 | D11: 1144.52 | L11: 0 | N11: 0 | P11: 0 | R11: 0 | T11: 0 | V11: 0 | X11: 0 | Z11: 0 | AB11: 0 | AD11: 0 | AF11: 0 | AH11: 0 | AJ11: 0 | AL11: 0 | AN11: 0 | AP11: 0 | AR11: 0 | AT11: 0 | AV11: 0 | AX11: 0 | AZ11: 0 | BB11: 0 | BD11: 0 | BF11: 0 | BH11: 0 | BJ11: 0 | BL11: 0 | BN11: 0 | BO11: 0 | BP11: 0 | BQ11: 170 | BR11: 1144.52
B12: Шланг высокого давления(шланг рулевой) | C12: 0 | D12: 0 | L12: 0 | N12: 0 | P12: 0 | R12: 0 | T12: 0 | V12: 0 | X12: 0 | Z12: 0 | AB12: 0 | AD12: 0 | AF12: 0 | AH12: 0 | AJ12: 0 | AL12: 0 | AN12: 0 | AP12: 0 | AR12: 0 | AT12: 0 | AV12: 0 | AX12: 0 | AZ12: 0 | BB12: 0 | BD12: 0 | BF12: 0 | BH12: 0 | BJ12: 0 | BL12: 0 | BN12: 0 | BO12: 0 | BP12: 0 | BQ12: 0 | BR12: 0
B13: Шланг д. 10(топливный) | C13: 0 | D13: 0 | L13: 0 | N13: 0 | P13: 0 | R13: 0 | T13: 0 | V13: 0 | X13: 0 | Z13: 0 | AB13: 0 | AD13: 0 | AF13: 0 | AH13: 0 | AJ13: 0 | AL13: 0 | AN13: 0 | AP13: 0 | AR13: 0 | AT13: 0 | AV13: 0 | AX13: 0 | AZ13: 0 | BB13: 0 | BD13: 0 | BF13: 0 | BH13: 0 | BJ13: 0 | BL13: 0 | BN13: 0 | BO13: 0 | BP13: 0 | BQ13: 0 | BR13: 0
B14: Шланг домкрата кабины | C14: 0 | D14: 0 | G14: 1 | H14: 110 | L14: 0 | N14: 0 | P14: 0 | R14: 0 | T14: 0 | V14: 0 | X14: 0 | Z14: 0 | AB14: 0 | AD14: 0 | AF14: 0 | AH14: 0 | AJ14: 0 | AL14: 0 | AN14: 0 | AP14: 0 | AR14: 0 | AT14: 0 | AV14: 0 | AX14: 0 | AZ14: 0 | BB14: 0 | BD14: 0 | BF14: 0 | BH14: 0 | BJ14: 0 | BL14: 0 | BN14: 0 | BO14: 0 | BP14: 0 | BQ14: 0 | BR14: 0
B15: Шланг повышенный -пониженный | C15: 0 | D15: 0 | L15: 0 | N15: 0 | P15: 0 | R15: 0 | T15: 0 | V15: 0 | X15: 0 | Z15: 0 | AB15: 0 | AD15: 0 | AF15: 0 | AH15: 0 | AJ15: 0 | AL15: 0 | AN15: 0 | AP15: 0 | AR15: 0 | AT15: 0 | AV15: 0 | AX15: 0 | AZ15: 0 | BB15: 0 | BD15: 0 | BF15: 0 | BH15: 0 | BJ15: 0 | BL15: 0 | BN15: 0 | BO15: 0 | BP15: 0 | BQ15: 0 | BR15: 0
B16: Шланг радиатора (компл.) | C16: 97 | D16: 3294.36 | L16: 0 | N16: 0 | P16: 0 | R16: 0 | T16: 0 | V16: 0 | X16: 0 | Z16: 0 | AB16: 0 | AD16: 0 | AE16: 1 | AF16: 33.96 | AH16: 0 | AJ16: 0 | AL16: 0 | AN16: 0 | AP16: 0 | AR16: 0 | AT16: 0 | AV16: 0 | AX16: 0 | AZ16: 0 | BB16: 0 | BD16: 0 | BF16: 0 | BH16: 0 | BJ16: 0 | BL16: 0 | BN16: 0 | BO16: 1 | BP16: 33.96 | BQ16: 96 | BR16: 3260.4
B17: Шланг тормоза | C17: 30 | D17: 691.3 | L17: 0 | N17: 0 | P17: 0 | R17: 0 | T17: 0 | V17: 0 | X17: 0 | Z17: 0 | AB17: 0 | AD17: 0 | AF17: 0 | AH17: 0 | AJ17: 0 | AL17: 0 | AN17: 0 | AP17: 0 | AR17: 0 | AT17: 0 | AV17: 0 | AX17: 0 | AZ17: 0 | BB17: 0 | BD17: 0 | BF17: 0 | BH17: 0 | BJ17: 0 | BL17: 0 | BN17: 0 | BO17: 0 | BP17: 0 | BQ17: 30 | BR17: 691.3
B18: Шланг электрический | C18: 4 | D18: 147.67 | L18: 0 | N18: 0 | P18: 0 | R18: 0 | T18: 0 | V18: 0 | X18: 0 | Z18: 0 | AB18: 0 | AD18: 0 | AF18: 0 | AH18: 0 | AJ18: 0 | AL18: 0 | AN18: 0 | AP18: 0 | AR18: 0 | AT18: 0 | AV18: 0 | AX18: 0 | AZ18: 0 | BB18: 0 | BD18: 0 | BF18: 0 | BH18: 0 | BJ18: 0 | BL18: 0 | BN18: 0 | BO18: 0 | BP18: 0 | BQ18: 4 | BR18: 147.67
B19: Шпилька турбонадув | C19: 161 | D19: 118.81 | L19: 0 | N19: 0 | P19: 0 | R19: 0 | T19: 0 | V19: 0 | X19: 0 | Z19: 0 | AB19: 0 | AD19: 0 | AF19: 0 | AH19: 0 | AJ19: 0 | AL19: 0 | AN19: 0 | AP19: 0 | AR19: 0 | AT19: 0 | AV19: 0 | AX19: 0 | AZ19: 0 | BB19: 0 | BD19: 0 | BF19: 0 | BH19: 0 | BJ19: 0 | BL19: 0 | BN19: 0 | BO19: 0 | BP19: 0 | BQ19: 161 | BR19: 118.81
B20: Штангер | C20: 4 | D20: 140.47 | L20: 0 | N20: 0 | P20: 0 | R20: 0 | T20: 0 | V20: 0 | X20: 0 | Z20: 0 | AB20: 0 | AD20: 0 | AF20: 0 | AH20: 0 | AJ20: 0 | AL20: 0 | AN20: 0 | AP20: 0 | AR20: 0 | AT20: 0 | AV20: 0 | AX20: 0 | AZ20: 0 | BB20: 0 | BD20: 0 | BF20: 0 | BH20: 0 | BJ20: 0 | BL20: 0 | BN20: 0 | BO20: 0 | BP20: 0 | BQ20: 4 | BR20: 140.47
B21: Щиток прибор | C21: 2 | D21: 1151.86 | L21: 0 | N21: 0 | P21: 0 | R21: 0 | T21: 0 | V21: 0 | X21: 0 | Z21: 0 | AB21: 0 | AD21: 0 | AF21: 0 | AH21: 0 | AJ21: 0 | AL21: 0 | AN21: 0 | AP21: 0 | AR21: 0 | AT21: 0 | AV21: 0 | AX21: 0 | AZ21: 0 | BB21: 0 | BD21: 0 | BF21: 0 | BH21: 0 | BJ21: 0 | BL21: 0 | BN21: 0 | BO21: 0 | BP21: 0 | BQ21: 2 | BR21: 1151.86
B22: Электрод | C22: 15 | D22: 105 | G22: 10 | H22: =G22*7 -> 70 | L22: 0 | N22: 0 | P22: 0 | R22: 0 | T22: 0 | V22: 0 | X22: 0 | Z22: 0 | AB22: 0 | AD22: 0 | AF22: 0 | AH22: 0 | AJ22: 0 | AL22: 0 | AN22: 0 | AP22: 0 | AR22: 0 | AT22: 0 | AV22: 0 | AX22: 0 | AZ22: 0 | BB22: 0 | BD22: 0 | BF22: 0 | BH22: 0 | BJ22: 0 | BL22: 0 | BN22: 0 | BO22: 0 | BP22: 0 | BQ22: 15 | BR22: 105
B23: Энергоаккумулятор | C23: 56 | D23: 7442.94 | L23: 0 | N23: 0 | P23: 0 | R23: 0 | T23: 0 | V23: 0 | X23: 0 | Z23: 0 | AB23: 0 | AD23: 0 | AF23: 0 | AH23: 0 | AJ23: 0 | AL23: 0 | AN23: 0 | AP23: 0 | AR23: 0 | AT23: 0 | AV23: 0 | AX23: 0 | AZ23: 0 | BB23: 0 | BD23: 0 | BF23: 0 | BH23: 0 | BJ23: 0 | BL23: 0 | BN23: 0 | BO23: 0 | BP23: 0 | BQ23: 56 | BR23: 7442.94
C24: 0 | D24: 0 | L24: =IF(ISERR(ROUND(K24*(($D24+$F24+$H24)/($C24+$E24+$G24)),2)),,ROUND(K24*(($D24+$F24+$H24)/($C24+$E24+$G24)),2)) -> 0 | N24: 0 | P24: 0 | R24: 0 | T24: 0 | V24: 0 | X24: 0 | Z24: 0 | AB24: 0 | AD24: 0 | AF24: 0 | AH24: 0 | AJ24: 0 | AL24: 0 | AN24: 0 | AP24: 0 | AR24: 0 | AT24: 0 | AV24: 0 | AX24: 0 | AZ24: 0 | BB24: 0 | BD24: 0 | BF24: 0 | BH24: 0 | BJ24: 0 | BL24: 0 | BN24: =IF(ISERR(ROUND(BM24*(($D24+$F24+$H24)/($C24+$E24+$G24)),2)),,ROUND(BM24*(($D24+$F24+$H24)/($C24+$E24+$G24)),2)) -> 0 | BO24: 0 | BP24: 0 | BQ24: 0 | BR24: 0
B25: 10820 - ИТОГО: | D25: =SUM(D5:D24) -> 24652.34 | F25: =SUM(F5:F24) -> 0 | H25: =SUM(H5:H24) -> 180 | I25: =SUM(I5:I24) -> 0 | J25: =SUM(J5:J24) -> 0 | L25: =SUM(L5:L24) -> 0 | N25: =SUM(N5:N24) -> 0 | P25: =SUM(P5:P24) -> 0 | Q25: 0 | R25: 0 | S25: 1 | T25: 74.93 | U25: 0 | V25: 0 | W25: 0 | X25: 0 | Y25: 1 | Z25: 65.02 | AA25: 0 | AB25: 0 | AD25: =SUM(AD5:AD24) -> 0 | AF25: =SUM(AF5:AF24) -> 33.96 | AH25: =SUM(AH5:AH24) -> 0 | AJ25: =SUM(AJ5:AJ24) -> 0 | AL25: =SUM(AL5:AL24) -> 0 | AN25: =SUM(AN5:AN24) -> 0 | AP25: =SUM(AP5:AP24) -> 0 | AR25: =SUM(AR5:AR24) -> 0 | AT25: =SUM(AT5:AT24) -> 0 | AV25: =SUM(AV5:AV24) -> 0 | AX25: =SUM(AX5:AX24) -> 0 | AZ25: =SUM(AZ5:AZ24) -> 0 | BB25: =SUM(BB5:BB24) -> 0 | BD25: =SUM(BD5:BD24) -> 0 | BF25: =SUM(BF5:BF24) -> 0 | BH25: =SUM(BH5:BH24) -> 0 | BJ25: =SUM(BJ5:BJ24) -> 0 | BL25: =SUM(BL5:BL24) -> 0 | BN25: =SUM(BN5:BN24) -> 0 | BP25: =SUM(BP5:BP24) -> 173.91 | BR25: =SUM(BR5:BR24) -> 24478.43 | BT25: =D25+J25-BP25 -> 24478.43
B26: Диск от болгарки | C26: 31 | D26: 190.28 | G26: 10 | H26: =G26*6 -> 60 | L26: =IF(ISERR(ROUND(K26*(($D26+$F26+$H26)/($C26+$E26+$G26)),2)),,ROUND(K26*(($D26+$F26+$H26)/($C26+$E26+$G26)),2)) -> 0 | N26: 0 | P26: =IF(ISERR(ROUND(O26*(($D26+$F26+$H26)/($C26+$E26+$G26)),2)),,ROUND(O26*(($D26+$F26+$H26)/($C26+$E26+$G26)),2)) -> 0 | R26: =IF(ISERR(ROUND(Q26*(($D26+$F26+$H26)/($C26+$E26+$G26)),2)),,ROUND(Q26*(($D26+$F26+$H26)/($C26+$E26+$G26)),2)) -> 0 | T26: =IF(ISERR(ROUND(S26*(($D26+$F26+$H26)/($C26+$E26+$G26)),2)),,ROUND(S26*(($D26+$F26+$H26)/($C26+$E26+$G26)),2)) -> 0 | V26: =IF(ISERR(ROUND(U26*(($D26+$F26+$H26)/($C26+$E26+$G26)),2)),,ROUND(U26*(($D26+$F26+$H26)/($C26+$E26+$G26)),2)) -> 0 | X26: =IF(ISERR(ROUND(W26*(($D26+$F26+$H26)/($C26+$E26+$G26)),2)),,ROUND(W26*(($D26+$F26+$H26)/($C26+$E26+$G26)),2)) -> 0 | Z26: 0 | AB26: 0 | AD26: 0 | AF26: 0 | AH26: 0 | AJ26: 0 | AL26: 0 | AN26: 0 | AP26: 0 | AR26: =IF(ISERR(ROUND(AQ26*(($D26+$F26+$H26)/($C26+$E26+$G26)),2)),,ROUND(AQ26*(($D26+$F26+$H26)/($C26+$E26+$G26)),2)) -> 0 | AT26: =IF(ISERR(ROUND(AS26*(($D26+$F26+$H26)/($C26+$E26+$G26)),2)),,ROUND(AS26*(($D26+$F26+$H26)/($C26+$E26+$G26)),2)) -> 0 | AV26: =IF(ISERR(ROUND(AU26*(($D26+$F26+$H26)/($C26+$E26+$G26)),2)),,ROUND(AU26*(($D26+$F26+$H26)/($C26+$E26+$G26)),2)) -> 0 | AX26: =IF(ISERR(ROUND(AW26*(($D26+$F26+$H26)/($C26+$E26+$G26)),2)),,ROUND(AW26*(($D26+$F26+$H26)/($C26+$E26+$G26)),2)) -> 0 | AZ26: =IF(ISERR(ROUND(AY26*(($D26+$F26+$H26)/($C26+$E26+$G26)),2)),,ROUND(AY26*(($D26+$F26+$H26)/($C26+$E26+$G26)),2)) -> 0 | BB26: =IF(ISERR(ROUND(BA26*(($D26+$F26+$H26)/($C26+$E26+$G26)),2)),,ROUND(BA26*(($D26+$F26+$H26)/($C26+$E26+$G26)),2)) -> 0 | BD26: =IF(ISERR(ROUND(BC26*(($D26+$F26+$H26)/($C26+$E26+$G26)),2)),,ROUND(BC26*(($D26+$F26+$H26)/($C26+$E26+$G26)),2)) -> 0 | BF26: =IF(ISERR(ROUND(BE26*(($D26+$F26+$H26)/($C26+$E26+$G26)),2)),,ROUND(BE26*(($D26+$F26+$H26)/($C26+$E26+$G26)),2)) -> 0 | BH26: =IF(ISERR(ROUND(BG26*(($D26+$F26+$H26)/($C26+$E26+$G26)),2)),,ROUND(BG26*(($D26+$F26+$H26)/($C26+$E26+$G26)),2)) -> 0 | BJ26: =IF(ISERR(ROUND(BI26*(($D26+$F26+$H26)/($C26+$E26+$G26)),2)),,ROUND(BI26*(($D26+$F26+$H26)/($C26+$E26+$G26)),2)) -> 0 | BL26: =IF(ISERR(ROUND(BK26*(($D26+$F26+$H26)/($C26+$E26+$G26)),2)),,ROUND(BK26*(($D26+$F26+$H26)/($C26+$E26+$G26)),2)) -> 0 | BN26: =IF(ISERR(ROUND(BM26*(($D26+$F26+$H26)/($C26+$E26+$G26)),2)),,ROUND(BM26*(($D26+$F26+$H26)/($C26+$E26+$G26)),2)) -> 0 | BO26: =SUMIF($K$4:$BN$39,$K$4,$K26:$BL26) -> 0 | BP26: =SUMIF($K$4:$BN$39,$L$4,$K26:$BL26) -> 0 | BQ26: =C26+I26-BO26 -> 31 | BR26: 190.28
B27: Доски | C27: 0 | D27: 0 | L27: =IF(ISERR(ROUND(K27*(($D27+$F27+$H27)/($C27+$E27+$G27)),2)),,ROUND(K27*(($D27+$F27+$H27)/($C27+$E27+$G27)),2)) -> 0 | N27: 0 | P27: 0 | R27: 0 | T27: 0 | V27: 0 | X27: 0 | Z27: 0 | AB27: 0 | AD27: 0 | AF27: 0 | AH27: 0 | AJ27: 0 | AL27: 0 | AN27: 0 | AP27: 0 | AR27: 0 | AT27: 0 | AV27: 0 | AX27: 0 | AZ27: 0 | BB27: 0 | BD27: 0 | BF27: 0 | BH27: 0 | BJ27: 0 | BL27: 0 | BN27: 0 | BO27: =SUMIF($K$4:$BN$39,$K$4,$K27:$BL27) -> 0 | BP27: =SUMIF($K$4:$BN$39,$L$4,$K27:$BL27) -> 0 | BQ27: 0 | BR27: 0
C28: 0 | D28: 0 | L28: 0 | N28: 0 | P28: 0 | R28: 0 | T28: 0 | V28: 0 | X28: 0 | Z28: 0 | AB28: 0 | AD28: 0 | AF28: 0 | AH28: 0 | AJ28: 0 | AL28: 0 | AN28: 0 | AP28: 0 | AR28: 0 | AT28: 0 | AV28: 0 | AX28: 0 | AZ28: 0 | BB28: 0 | BD28: 0 | BF28: 0 | BH28: 0 | BJ28: 0 | BL28: 0 | BN28: 0 | BO28: =SUMIF($K$4:$BN$39,$K$4,$K28:$BL28) -> 0 | BP28: =SUMIF($K$4:$BN$39,$L$4,$K28:$BL28) -> 0 | BQ28: 0 | BR28: 0
B29: 10830 - ИТОГО: | D29: =SUM(D26:D28) -> 190.28 | F29: =SUM(F26:F28) -> 0 | H29: =SUM(H26:H28) -> 60 | I29: =SUM(I26:I28) -> 0 | J29: =SUM(J26:J28) -> 0 | L29: =SUM(L26:L28) -> 0 | N29: =SUM(N26:N28) -> 0 | P29: =SUM(P26:P28) -> 0 | R29: =SUM(R26:R28) -> 0 | T29: =SUM(T26:T28) -> 0 | V29: =SUM(V26:V28) -> 0 | X29: =SUM(X26:X28) -> 0 | Z29: =SUM(Z26:Z28) -> 0 | AB29: =SUM(AB26:AB28) -> 0 | AD29: =SUM(AD26:AD28) -> 0 | AF29: =SUM(AF26:AF28) -> 0 | AH29: =SUM(AH26:AH28) -> 0 | AJ29: =SUM(AJ26:AJ28) -> 0 | AL29: =SUM(AL26:AL28) -> 0 | AN29: =SUM(AN26:AN28) -> 0 | AP29: =SUM(AP26:AP28) -> 0 | AR29: =SUM(AR26:AR28) -> 0 | AT29: =SUM(AT26:AT28) -> 0 | AV29: =SUM(AV26:AV28) -> 0 | AX29: =SUM(AX26:AX28) -> 0 | AZ29: =SUM(AZ26:AZ28) -> 0 | BB29: =SUM(BB26:BB28) -> 0 | BD29: =SUM(BD26:BD28) -> 0 | BF29: =SUM(BF26:BF28) -> 0 | BH29: =SUM(BH26:BH28) -> 0 | BJ29: =SUM(BJ26:BJ28) -> 0 | BL29: =SUM(BL26:BL28) -> 0 | BN29: =SUM(BN26:BN28) -> 0 | BP29: =SUM(BP26:BP28) -> 0 | BR29: =SUM(BR26:BR28) -> 190.28 | BT29: =D29+J29-BP29 -> 190.28
B30: Автошина | C30: 52 | D30: 105580.8 | L30: =IF(ISERR(ROUND(K30*(($D30+$F30+$H30)/($C30+$E30+$G30)),2)),,ROUND(K30*(($D30+$F30+$H30)/($C30+$E30+$G30)),2)) -> 0 | N30: =IF(ISERR(ROUND(M30*(($D30+$F30+$H30)/($C30+$E30+$G30)),2)),,ROUND(M30*(($D30+$F30+$H30)/($C30+$E30+$G30)),2)) -> 0 | P30: =IF(ISERR(ROUND(O30*(($D30+$F30+$H30)/($C30+$E30+$G30)),2)),,ROUND(O30*(($D30+$F30+$H30)/($C30+$E30+$G30)),2)) -> 0 | R30: =IF(ISERR(ROUND(Q30*(($D30+$F30+$H30)/($C30+$E30+$G30)),2)),,ROUND(Q30*(($D30+$F30+$H30)/($C30+$E30+$G30)),2)) -> 0 | T30: =IF(ISERR(ROUND(S30*(($D30+$F30+$H30)/($C30+$E30+$G30)),2)),,ROUND(S30*(($D30+$F30+$H30)/($C30+$E30+$G30)),2)) -> 0 | V30: =IF(ISERR(ROUND(U30*(($D30+$F30+$H30)/($C30+$E30+$G30)),2)),,ROUND(U30*(($D30+$F30+$H30)/($C30+$E30+$G30)),2)) -> 0 | X30: =IF(ISERR(ROUND(W30*(($D30+$F30+$H30)/($C30+$E30+$G30)),2)),,ROUND(W30*(($D30+$F30+$H30)/($C30+$E30+$G30)),2)) -> 0 | Z30: =IF(ISERR(ROUND(Y30*(($D30+$F30+$H30)/($C30+$E30+$G30)),2)),,ROUND(Y30*(($D30+$F30+$H30)/($C30+$E30+$G30)),2)) -> 0 | AB30: =IF(ISERR(ROUND(AA30*(($D30+$F30+$H30)/($C30+$E30+$G30)),2)),,ROUND(AA30*(($D30+$F30+$H30)/($C30+$E30+$G30)),2)) -> 0 | AD30: =IF(ISERR(ROUND(AC30*(($D30+$F30+$H30)/($C30+$E30+$G30)),2)),,ROUND(AC30*(($D30+$F30+$H30)/($C30+$E30+$G30)),2)) -> 0 | AF30: =IF(ISERR(ROUND(AE30*(($D30+$F30+$H30)/($C30+$E30+$G30)),2)),,ROUND(AE30*(($D30+$F30+$H30)/($C30+$E30+$G30)),2)) -> 0 | AH30: =IF(ISERR(ROUND(AG30*(($D30+$F30+$H30)/($C30+$E30+$G30)),2)),,ROUND(AG30*(($D30+$F30+$H30)/($C30+$E30+$G30)),2)) -> 0 | AJ30: =IF(ISERR(ROUND(AI30*(($D30+$F30+$H30)/($C30+$E30+$G30)),2)),,ROUND(AI30*(($D30+$F30+$H30)/($C30+$E30+$G30)),2)) -> 0 | AL30: =IF(ISERR(ROUND(AK30*(($D30+$F30+$H30)/($C30+$E30+$G30)),2)),,ROUND(AK30*(($D30+$F30+$H30)/($C30+$E30+$G30)),2)) -> 0 | AN30: =IF(ISERR(ROUND(AM30*(($D30+$F30+$H30)/($C30+$E30+$G30)),2)),,ROUND(AM30*(($D30+$F30+$H30)/($C30+$E30+$G30)),2)) -> 0 | AP30: =IF(ISERR(ROUND(AO30*(($D30+$F30+$H30)/($C30+$E30+$G30)),2)),,ROUND(AO30*(($D30+$F30+$H30)/($C30+$E30+$G30)),2)) -> 0 | AR30: =IF(ISERR(ROUND(AQ30*(($D30+$F30+$H30)/($C30+$E30+$G30)),2)),,ROUND(AQ30*(($D30+$F30+$H30)/($C30+$E30+$G30)),2)) -> 0 | AT30: =IF(ISERR(ROUND(AS30*(($D30+$F30+$H30)/($C30+$E30+$G30)),2)),,ROUND(AS30*(($D30+$F30+$H30)/($C30+$E30+$G30)),2)) -> 0 | AV30: =IF(ISERR(ROUND(AU30*(($D30+$F30+$H30)/($C30+$E30+$G30)),2)),,ROUND(AU30*(($D30+$F30+$H30)/($C30+$E30+$G30)),2)) -> 0 | AX30: =IF(ISERR(ROUND(AW30*(($D30+$F30+$H30)/($C30+$E30+$G30)),2)),,ROUND(AW30*(($D30+$F30+$H30)/($C30+$E30+$G30)),2)) -> 0 | AZ30: =IF(ISERR(ROUND(AY30*(($D30+$F30+$H30)/($C30+$E30+$G30)),2)),,ROUND(AY30*(($D30+$F30+$H30)/($C30+$E30+$G30)),2)) -> 0 | BB30: =IF(ISERR(ROUND(BA30*(($D30+$F30+$H30)/($C30+$E30+$G30)),2)),,ROUND(BA30*(($D30+$F30+$H30)/($C30+$E30+$G30)),2)) -> 0 | BD30: =IF(ISERR(ROUND(BC30*(($D30+$F30+$H30)/($C30+$E30+$G30)),2)),,ROUND(BC30*(($D30+$F30+$H30)/($C30+$E30+$G30)),2)) -> 0 | BF30: =IF(ISERR(ROUND(BE30*(($D30+$F30+$H30)/($C30+$E30+$G30)),2)),,ROUND(BE30*(($D30+$F30+$H30)/($C30+$E30+$G30)),2)) -> 0 | BH30: =IF(ISERR(ROUND(BG30*(($D30+$F30+$H30)/($C30+$E30+$G30)),2)),,ROUND(BG30*(($D30+$F30+$H30)/($C30+$E30+$G30)),2)) -> 0 | BJ30: =IF(ISERR(ROUND(BI30*(($D30+$F30+$H30)/($C30+$E30+$G30)),2)),,ROUND(BI30*(($D30+$F30+$H30)/($C30+$E30+$G30)),2)) -> 0 | BL30: =IF(ISERR(ROUND(BK30*(($D30+$F30+$H30)/($C30+$E30+$G30)),2)),,ROUND(BK30*(($D30+$F30+$H30)/($C30+$E30+$G30)),2)) -> 0 | BN30: =IF(ISERR(ROUND(BM30*(($D30+$F30+$H30)/($C30+$E30+$G30)),2)),,ROUND(BM30*(($D30+$F30+$H30)/($C30+$E30+$G30)),2)) -> 0 | BO30: =SUMIF($K$4:$BN$39,$K$4,$K30:$BL30) -> 0 | BP30: =SUMIF($K$4:$BN$39,$L$4,$K30:$BL30) -> 0 | BQ30: =C30+I30-BO30 -> 52 | BR30: 105580.8
B31: Веники | C31: 5 | D31: 65 | L31: 0 | N31: 0 | P31: 0 | R31: 0 | T31: 0 | V31: 0 | X31: 0 | Z31: 0 | AB31: 0 | AD31: 0 | AF31: 0 | AH31: 0 | AJ31: 0 | AL31: 0 | AN31: 0 | AP31: 0 | AR31: 0 | AT31: 0 | AV31: 0 | AX31: 0 | AZ31: 0 | BB31: 0 | BD31: 0 | BF31: 0 | BH31: 0 | BJ31: 0 | BL31: 0 | BN31: 0 | BO31: =SUMIF($K$4:$BN$39,$K$4,$K31:$BL31) -> 0 | BP31: =SUMIF($K$4:$BN$39,$L$4,$K31:$BL31) -> 0 | BQ31: 5 | BR31: 65
B32: Генератор | C32: 12 | D32: 5139.19 | L32: 0 | N32: 0 | P32: 0 | R32: 0 | T32: 0 | V32: 0 | X32: 0 | Z32: 0 | AB32: 0 | AD32: 0 | AF32: 0 | AH32: 0 | AJ32: 0 | AL32: 0 | AN32: 0 | AP32: 0 | AR32: 0 | AT32: 0 | AV32: 0 | AX32: 0 | AZ32: 0 | BB32: 0 | BD32: 0 | BF32: 0 | BH32: 0 | BJ32: 0 | BL32: 0 | BN32: 0 | BO32: =SUMIF($K$4:$BN$39,$K$4,$K32:$BL32) -> 0 | BP32: =SUMIF($K$4:$BN$39,$L$4,$K32:$BL32) -> 0 | BQ32: 12 | BR32: 5139.19
B33: 10850 Итого | D33: =SUM(D30:D32) -> 110784.99 | I33: =SUM(I30:I32) -> 0 | J33: =SUM(J30:J32) -> 0 | L33: =SUM(L30:L32) -> 0 | N33: =SUM(N30:N32) -> 0 | P33: =SUM(P30:P32) -> 0 | R33: =SUM(R30:R32) -> 0 | T33: =SUM(T30:T32) -> 0 | V33: =SUM(V30:V32) -> 0 | X33: =SUM(X30:X32) -> 0 | Z33: =SUM(Z30:Z32) -> 0 | AB33: =SUM(AB30:AB32) -> 0 | AD33: =SUM(AD30:AD32) -> 0 | AF33: =SUM(AF30:AF32) -> 0 | AH33: =SUM(AH30:AH32) -> 0 | AJ33: =SUM(AJ30:AJ32) -> 0 | AL33: =SUM(AL30:AL32) -> 0 | AN33: =SUM(AN30:AN32) -> 0 | AP33: =SUM(AP30:AP32) -> 0 | AR33: =SUM(AR30:AR32) -> 0 | AT33: =SUM(AT30:AT32) -> 0 | AV33: =SUM(AV30:AV32) -> 0 | AX33: =SUM(AX30:AX32) -> 0 | AZ33: =SUM(AZ30:AZ32) -> 0 | BB33: =SUM(BB30:BB32) -> 0 | BD33: =SUM(BD30:BD32) -> 0 | BF33: =SUM(BF30:BF32) -> 0 | BH33: =SUM(BH30:BH32) -> 0 | BJ33: =SUM(BJ30:BJ32) -> 0 | BL33: =SUM(BL30:BL32) -> 0 | BN33: =SUM(BN30:BN32) -> 0 | BP33: =SUM(BP30:BP32) -> 0 | BR33: =SUM(BR30:BR32) -> 110784.99 | BT33: =D33+J33-BP33 -> 110784.99
B34: Водопомпа | C34: 1 | D34: 630 | L34: 0 | N34: 0 | P34: 0 | R34: 0 | T34: 0 | V34: 0 | X34: 0 | Z34: 0 | AB34: 0 | AD34: 0 | AF34: 0 | AH34: 0 | AJ34: 0 | AL34: 0 | AN34: 0 | AP34: 0 | AR34: 0 | AT34: 0 | AV34: 0 | AX34: 0 | AZ34: 0 | BB34: 0 | BD34: 0 | BF34: 0 | BH34: 0 | BJ34: 0 | BL34: 0 | BN34: 0 | BO34: =SUMIF($K$4:$BN$39,$K$4,$K34:$BL34) -> 0 | BP34: =SUMIF($K$4:$BN$39,$L$4,$K34:$BL34) -> 0 | BQ34: =C34+I34-BO34 -> 1 | BR34: 630
B35: Штыковые лопаты | C35: 2 | D35: 36 | L35: 0 | N35: =IF(ISERR(ROUND(M35*(($D35+$F35+$H35)/($C35+$E35+$G35)),2)),,ROUND(M35*(($D35+$F35+$H35)/($C35+$E35+$G35)),2)) -> 0 | P35: 0 | R35: 0 | T35: 0 | V35: 0 | X35: 0 | Z35: 0 | AB35: 0 | AD35: 0 | AF35: 0 | AH35: 0 | AJ35: 0 | AL35: 0 | AN35: 0 | AP35: =IF(ISERR(ROUND(AO35*(($D35+$F35+$H35)/($C35+$E35+$G35)),2)),,ROUND(AO35*(($D35+$F35+$H35)/($C35+$E35+$G35)),2)) -> 0 | AR35: 0 | AT35: 0 | AV35: 0 | AX35: 0 | AZ35: 0 | BB35: 0 | BD35: 0 | BF35: 0 | BH35: 0 | BJ35: 0 | BL35: 0 | BN35: 0 | BO35: =SUMIF($K$4:$BN$39,$K$4,$K35:$BL35) -> 0 | BP35: =SUMIF($K$4:$BN$39,$L$4,$K35:$BL35) -> 0 | BQ35: 2 | BR35: 36
B36: Чайник электрический | C36: 1 | D36: 55 | L36: 0 | N36: 0 | P36: 0 | R36: 0 | T36: 0 | V36: 0 | X36: 0 | Z36: 0 | AB36: 0 | AD36: 0 | AF36: 0 | AH36: 0 | AJ36: 0 | AL36: 0 | AN36: 0 | AP36: 0 | AR36: 0 | AT36: 0 | AV36: 0 | AX36: 0 | AZ36: 0 | BB36: 0 | BD36: 0 | BF36: 0 | BH36: 0 | BJ36: 0 | BL36: 0 | BN36: 0 | BO36: =SUMIF($K$4:$BN$39,$K$4,$K36:$BL36) -> 0 | BP36: =SUMIF($K$4:$BN$39,$L$4,$K36:$BL36) -> 0 | BQ36: 1 | BR36: 55
C37: 0 | D37: 0 | L37: 0 | N37: 0 | P37: 0 | R37: 0 | T37: 0 | V37: 0 | X37: 0 | Z37: 0 | AB37: 0 | AD37: 0 | AF37: 0 | AH37: 0 | AJ37: 0 | AL37: 0 | AN37: 0 | AP37: 0 | AR37: 0 | AT37: 0 | AV37: 0 | AX37: 0 | AZ37: 0 | BB37: 0 | BD37: 0 | BF37: 0 | BH37: 0 | BJ37: 0 | BL37: 0 | BN37: 0 | BO37: =SUMIF($K$4:$BN$39,$K$4,$K37:$BL37) -> 0 | BP37: =SUMIF($K$4:$BN$39,$L$4,$K37:$BL37) -> 0 | BQ37: 0 | BR37: 0
B38: 10860 - ИТОГО: | D38: =SUM(D34:D37) -> 721 | F38: =SUM(F30:F37) -> 0 | H38: =SUM(H30:H37) -> 0 | J38: =SUM(J33:J37) -> 0 | L38: =SUM(L34:L37) -> 0 | N38: =SUM(N34:N37) -> 0 | P38: =SUM(P34:P37) -> 0 | R38: =SUM(R34:R37) -> 0 | T38: =SUM(T34:T37) -> 0 | V38: =SUM(V34:V37) -> 0 | X38: =SUM(X34:X37) -> 0 | Z38: =SUM(Z34:Z37) -> 0 | AB38: =SUM(AB34:AB37) -> 0 | AD38: =SUM(AD34:AD37) -> 0 | AF38: =SUM(AF34:AF37) -> 0 | AH38: =SUM(AH34:AH37) -> 0 | AJ38: =SUM(AJ34:AJ37) -> 0 | AL38: =SUM(AL34:AL37) -> 0 | AN38: =SUM(AN34:AN37) -> 0 | AP38: =SUM(AP34:AP37) -> 0 | AR38: =SUM(AR34:AR37) -> 0 | AT38: =SUM(AT34:AT37) -> 0 | AV38: =SUM(AV34:AV37) -> 0 | AX38: =SUM(AX34:AX37) -> 0 | AZ38: =SUM(AZ34:AZ37) -> 0 | BB38: =SUM(BB34:BB37) -> 0 | BD38: =SUM(BD34:BD37) -> 0 | BF38: =SUM(BF34:BF37) -> 0 | BH38: =SUM(BH34:BH37) -> 0 | BJ38: =SUM(BJ34:BJ37) -> 0 | BL38: =SUM(BL34:BL37) -> 0 | BN38: =SUM(BN34:BN37) -> 0 | BP38: =SUM(BP34:BP37) -> 0 | BR38: =SUM(BR34:BR37) -> 721
B39: Склад Назарова Б. - ВСЕГО: | D39: =D25+D29+D33+D38 -> 136348.61 | F39: =F25+F29+F38 -> 0 | H39: =H25+H29+H38 -> 240 | J39: =J25+J29+J38 -> 0 | L39: =L25+L29+L33+L38 -> 0 | N39: =N25+N29+N33+N38 -> 0 | P39: =P25+P29+P33+P38 -> 0 | R39: =R25+R29+R33+R38 -> 0 | T39: =T25+T29+T33+T38 -> 74.93 | V39: =V25+V29+V33+V38 -> 0 | X39: =X25+X29+X33+X38 -> 0 | Z39: =Z25+Z29+Z33+Z38 -> 65.02 | AB39: =AB25+AB29+AB33+AB38 -> 0 | AD39: =AD25+AD29+AD33+AD38 -> 0 | AF39: =AF25+AF29+AF33+AF38 -> 33.96 | AH39: =AH25+AH29+AH33+AH38 -> 0 | AJ39: =AJ25+AJ29+AJ33+AJ38 -> 0 | AL39: =AL25+AL29+AL33+AL38 -> 0 | AN39: =AN25+AN29+AN33+AN38 -> 0 | AP39: =AP25+AP29+AP33+AP38 -> 0 | AR39: =AR25+AR29+AR33+AR38 -> 0 | AT39: =AT25+AT29+AT33+AT38 -> 0 | AV39: =AV25+AV29+AV33+AV38 -> 0 | AX39: =AX25+AX29+AX33+AX38 -> 0 | AZ39: =AZ25+AZ29+AZ33+AZ38 -> 0 | BB39: =BB25+BB29+BB33+BB38 -> 0 | BD39: =BD25+BD29+BD33+BD38 -> 0 | BF39: =BF25+BF29+BF33+BF38 -> 0 | BH39: =BH25+BH29+BH33+BH38 -> 0 | BJ39: =BJ25+BJ29+BJ33+BJ38 -> 0 | BL39: =BL25+BL29+BL33+BL38 -> 0 | BN39: =BN25+BN29+BN33+BN38 -> 0 | BO39: =BO25+BO29+BO38 -> 0 | BP39: =BP25+BP29+BP38+BP33 -> 173.91 | BR39: =BR25+BR29+BR33+BR38 -> 136174.7 | BT39: =D39+J39-BP39 -> 136174.7
